Cogmind - Beta 13 X1 @@@ ROGUE MODE // 2023.06.27 @ 19:28:46 Player: Jezoensis Result: Escaped! Performance ------------- Evolutions (9) 4500 Regions Visited (30) 6000 Robots Destroyed (256) 1280 Value Destroyed (10486) 10486 Prototype IDs (240) 4800 Alien Tech Used (0) 0 Bonus (12326) 12326 TOTAL SCORE: 39392 Bonus ------- High Alert Combat Kills 509 Follower Combat Kills 292 Entered Garrisons 1200 Used RIF Installer 3500 Entered DSFs 500 Aligned with FarCom 300 Met Data Miner 300 Used Data Conduit 3000 Win 3000 Friendly Fire -275 Cogmind --------- Core Integrity 1404/1600 Matter 290/300 Energy 585/600 System Corruption 3% Temperature Hot (216) Movement Treading (150) Location To Epsilon Eridani Parts ------- > --- POWER (2) -------- Quantum Reactor Quantum Reactor > --- PROPULSION (5) --- Advanced Medium Treads Improved Heavy Treads Biometal Medium Treads > --- UTILITY (14) ----- Advanced Cooling System High-capacity Storage Unit Experimental Optical Array Advanced Targeting Computer Advanced Launcher Guidance Computer Improved Target Analyzer Experimental Core Analyzer Armor Integrity Analyzer Advanced Weapon Cycler Advanced Transmission Jammer Graphene Brace Graphene Brace Improved Focal Shield High-powered Tractor Beam > --- WEAPON (4) ------- Linear Accelerator Linear Accelerator Linear Accelerator Linear Accelerator > --- INVENTORY (20) --- Quantum Reactor Quantum Reactor Structural Scanner Improved Cloaking Device Enhanced Nova Cannon Helical Railgun Enhanced Gamma Bomb Array Enhanced Gamma Bomb Array Peak State ------------ > --- POWER ------------ Quantum Reactor Quantum Reactor > --- PROPULSION ------- Biometal Medium Treads Biometal Heavy Treads Advanced Heavy Siege Treads > --- UTILITY ---------- Improved Cooling System High-capacity Storage Unit Experimental Optical Array Advanced Targeting Computer Advanced Targeting Computer Advanced Launcher Guidance Computer Improved Target Analyzer Experimental Core Analyzer Armor Integrity Analyzer Advanced Weapon Cycler Advanced Transmission Jammer Improved Cloaking Device Layered Heavy Armor Plating > --- WEAPON ----------- Helical Railgun Heavy Linear Accelerator Enhanced Gamma Bomb Array > --- INVENTORY -------- Quantum Reactor Quantum Reactor Advanced Medium Treads Improved Heavy Treads High-capacity Matter Pod Matter Compressor Structural Scanner Layered Heavy Armor Plating Graphene Brace Improved Focal Shield High-powered Tractor Beam Enhanced Nova Cannon Enhanced Gauss Cannon Linear Accelerator Linear Accelerator Linear Accelerator Linear Accelerator Enhanced Gamma Bomb Array [Rating: 190] Favorites ----------- Power Cooled Ion Engine Engine Cooled Ion Engine Power Core Neutrino Core Reactor Quantum Reactor Propulsion Potential Leg Treads Improved Treads Leg Potential Leg Wheel Compact Wheel Hover Unit Gravmag System Utility Advanced Targeting Computer Device Structural Scanner Storage High-capacity Storage Unit Processor Advanced Targeting Computer Hackware Hacking Suite Protection Improved Light Armor Plating Weapon Heavy Linear Accelerator Energy Gun Advanced Beam Rifle Energy Cannon Enhanced Nova Cannon Ballistic Gun Assault Rifle Ballistic Cannon Heavy Linear Accelerator Launcher Mini Grenade Launcher Special Weapon Plasma Cutter Impact Weapon Powered Hammer Slashing Weapon Katana Special Melee Weapon Improved Datajack Build | -11 -10 -10 -9 -9 -9 -8 -8 -8 -8 -8 -7 -7 -7 -6 -6 -6 -6 -5 -5 -5 -5 -5 -4 -4 -4 -4 -3 -2 -2 -1 ------- Run | Jun Mat Min Mat Min Exi Min Mat Gar Mat Gar Fac Low Low Fac Low Low Dat Pro Fac Gar Fac Gar Fac Gar Fac Gar Res Res DSF Acc Slots Evolved 18 | . . . 2 . . . 2 . . . 2 . . 2 . . . . 2 . . . 2 . . . 2 2 . 2 Power 1 | . . . . . . . . . . . . . . . . . . . . . . . 1 . . . . . . . Propulsion 3 | . . . 1 . . . . . . . 1 . . . . . . . 1 . . . . . . . . . . . Utility 12 | . . . 1 . . . 2 . . . 1 . . 2 . . . . . . . . 1 . . . 2 2 . 1 Weapon 2 | . . . . . . . . . . . . . . . . . . . 1 . . . . . . . . . . 1 Parts Attached 503 | 8 4 2 28 15 3 . 55 19 16 31 30 19 15 9 14 2 20 . 8 12 13 8 38 14 13 32 5 2 18 50 Power 22 | 1 . 1 2 . . . 1 . . . 1 . 2 1 . . 1 . . 1 . . 2 1 1 3 1 . 2 1 Engine 10 | 1 . . 1 . . . 1 . . . 1 . 2 1 . . 1 . . . . . 2 . . . . . . . Core 5 | . . 1 1 . . . . . . . . . . . . . . . . 1 . . . 1 . 1 . . . . Reactor 7 | . . . . . . . . . . . . . . . . . . . . . . . . . 1 2 1 . 2 1 Propulsion 59 | 3 2 1 2 3 2 . 3 . . 1 2 3 1 2 . . 8 . 3 2 5 2 3 2 . 4 . . 2 3 Treads 23 | . 1 . 1 2 . . . . . 1 1 2 . . . . 3 . . 1 1 . 1 . . 4 . . 2 3 Leg 20 | . . . . . 2 . 3 . . . 1 1 1 2 . . 5 . . . 2 2 . 1 . . . . . . Wheel 15 | 3 1 1 1 1 . . . . . . . . . . . . . . 2 1 2 . 2 1 . . . . . . Hover 1 | . . . . . . . . . . . . . . . . . . . 1 . . . . . . . . . . . Flight . | . . . . . . . . . . . . . . . . . . . . . . . . . . . . . . . Utility 291 | 2 2 . 16 12 1 . 40 8 12 14 20 14 7 4 7 2 5 . 3 6 5 2 22 9 10 20 3 2 11 32 Device 220 | 2 . . 11 9 . . 21 8 7 12 16 9 4 . 5 2 5 . 1 5 4 1 21 9 8 17 2 2 10 29 Storage 5 | . 2 . 1 . 1 . 1 . . . . . . . . . . . . . . . . . . . . . . . Processor 13 | . . . . . . . 2 . . . 1 1 1 . 1 . . . 1 1 . 1 . . . 1 1 . 1 1 Hackware 4 | . . . . . . . 1 . 1 . . . . 1 . . . . 1 . . . . . . . . . . . Protection 49 | . . . 4 3 . . 15 . 4 2 3 4 2 3 1 . . . . . 1 . 1 . 2 2 . . . 2 Artifact . | . . . . . . . . . . . . . . . . . . . . . . . . . . . . . . . Weapon 131 | 2 . . 8 . . . 11 11 4 16 7 2 5 2 7 . 6 . 2 3 3 4 11 2 2 5 1 . 3 14 Energy Gun 28 | 1 . . 6 . . . 5 6 2 5 1 . . . . . . . . 1 . . 1 . . . . . . . Energy Cannon 5 | . . . . . . . . . . . . . . . . . . . . . . . . . . . 1 . 1 3 Ballistic Gun 7 | 1 . . 1 . . . 2 . . . . . . . . . . . . 1 . . . . . . . . . 2 Ballistic Cannon 40 | . . . . . . . 1 . . . 5 1 2 1 3 . 2 . 1 1 1 3 5 1 1 3 . . 1 8 Launcher 25 | . . . 1 . . . 2 3 1 5 . 1 1 . 3 . 2 . . . . . 1 1 . 2 . . 1 1 Special Weapon 1 | . . . . . . . . . . . . . 1 . . . . . . . . . . . . . . . . . Impact Weapon 12 | . . . . . . . . . . . . . 1 1 1 . . . 1 . 2 1 4 . 1 . . . . . Slashing Weapon 12 | . . . . . . . 1 2 . 6 1 . . . . . 2 . . . . . . . . . . . . . Piercing Weapon . | . . . . . . . . . . . . . . . . . . . . . . . . . . . . . . . Special Melee Weapon 1 | . . . . . . . . . 1 . . . . . . . . . . . . . . . . . . . . . Unidentified Prototypes 6 | . . . 2 . . . 1 1 . . 1 . . . . . . . . . . . . . . . . . . 1 Parts Lost 47 | . . . . 1 . . 2 1 . 2 . 6 2 . 6 1 10 . . 1 2 . 2 1 . 1 . . 1 8 Power 3 | . . . . . . . . . . . . . 1 . . . 1 . . . . . 1 . . . . . . . Propulsion 14 | . . . . 1 . . . . . 1 . 3 . . . . 5 . . . 1 . . 1 . . . . . 2 Utility 21 | . . . . . . . 1 . . 1 . 3 1 . 4 1 2 . . . 1 . 1 . . 1 . . 1 4 Weapon 9 | . . . . . . . 1 1 . . . . . . 2 . 2 . . 1 . . . . . . . . . 2 Highest Loss Streak 10 | . . . . 1 . . 1 1 . 1 . 6 1 . 3 1 10 . . 1 2 . 1 1 . 1 . . 1 7 To Critical Strikes 1 | . . . . . . . . . . . . 1 . . . . . . . . . . . . . . . . . . Average Slot Usage (%) 94 | . 100 100 100 100 100 100 99 100 100 99 100 99 99 97 98 100 93 93 93 96 93 94 92 89 89 81 84 86 85 83 Engine 5 | . 14 11 10 11 11 11 9 9 9 9 7 7 6 6 6 6 5 6 5 3 . . 6 6 2 . . . . . Core 1 | . . 2 . . . . . . . . . . . . . . . . . 1 5 5 3 3 5 4 1 . . . Reactor 1 | . . . . . . . . . . . . . . . . . . . . . . . . . 2 5 6 8 8 8 Treads 6 | . 2 . 11 11 11 11 . . . 7 10 13 10 2 . . 3 . . . 1 5 6 9 5 13 14 13 13 12 Leg 12 | . . . . . 8 22 26 27 27 19 19 16 19 23 26 26 19 20 17 17 14 11 5 . 5 . . . . . Wheel 5 | . 25 28 22 22 13 . . . . . . . . . . . . . 6 10 11 11 13 15 15 2 . . . . Device 15 | . 18 14 18 20 22 22 16 9 12 8 14 13 14 13 15 26 23 26 19 17 14 11 14 10 10 6 18 26 21 17 Storage 6 | . 9 14 11 11 11 11 9 9 9 9 7 7 7 6 6 6 6 6 5 5 5 5 5 5 5 5 4 4 4 4 Processor 14 | . . . . . . . 9 9 9 9 8 15 15 13 15 20 20 20 17 20 23 23 21 21 21 25 23 21 24 26 Hackware 2 | . . . . . . . 7 9 9 9 5 . . 5 4 . . . 3 2 . . . . . . . . . . Protection 4 | . . . 3 1 . . 3 8 5 9 7 8 7 10 9 . . . . . 2 5 4 5 4 5 4 4 4 3 Energy Gun 5 | . 14 14 13 22 22 22 12 13 16 13 5 . . . . . . . . . . . . . . . . . . . Ballistic Gun 1 | . 14 14 8 . . . 2 . . . . . . . . . . . . . . . . . . . . . . 3 Ballistic Cannon 5 | . . . . . . . 1 . . . 8 15 11 8 8 13 7 . 2 8 6 8 8 9 7 9 5 4 4 7 Naked Turns . | . . . . . . . . . . . . . . . . . . . . . . . . . . . . . . . Heaviest Build 155 | 9 18 22 66 63 56 56 68 60 64 60 71 68 74 73 75 68 68 60 64 92 98 103 117 124 124 136 129 132 134 155 Greatest Support 190 | 20 20 20 20 20 60 60 75 75 60 60 75 75 70 90 90 90 90 60 60 60 32 35 48 48 48 155 155 155 185 190 Greatest Overweight (x) 5 | . . 1 3 3 5 . . . 1 . . 1 1 . . . . . 1 5 3 3 5 2 2 2 . . . . Average Overweight (x) . | . . . 1 2 1 . . . . . . . . . . . . . . 1 2 2 2 2 2 . . . . . Largest Inventory Capacity 20 | 5 10 10 20 20 20 20 20 20 20 20 20 20 20 20 20 20 20 20 20 20 20 20 20 20 20 20 20 20 20 20 Average Capacity 19 | 5 7 10 17 20 20 20 20 20 20 20 20 20 20 20 20 20 20 20 20 20 20 20 20 20 20 20 20 20 20 20 Most Carried 20 | 5 9 10 20 20 20 20 20 20 20 20 20 20 20 20 20 20 20 11 20 20 20 20 20 20 20 20 19 19 20 20 Average Carried 18 | 4 6 9 16 19 20 19 19 19 19 19 19 15 18 19 19 19 17 11 16 19 19 19 19 19 19 19 17 17 19 18 Final Capacity 20 | 5 10 10 20 20 20 20 20 20 20 20 20 20 20 20 20 20 20 20 20 20 20 20 20 20 20 20 20 20 20 20 Final Carried 20 | 5 9 10 20 20 20 20 20 20 20 20 20 16 20 20 19 20 11 11 20 20 20 20 20 20 20 19 19 19 20 8 Class Distribution -------------------- 42% | Mutant 10% | Skirmisher 9% | Scavenger-Mutant 7% | Infiltrator-Mutant 7% | Scavenger-Gunner 6% | Gunner 3% | Assassin 3% | Infiltrator-Assassin 3% | Infiltrator-Gunner Dominant Class ---------------- Mutant | -10/Materials Mutant | -10/Mines Mutant | -9/Materials Mutant | -9/Mines Mutant | -9/Exiles Mutant | -8/Mines Skirmisher | -8/Materials Mutant | -8/Garrison Mutant | -8/Materials Mutant | -8/Garrison Skirmisher | -7/Factory Mutant | -7/Lower Caves Mutant | -7/Lower Caves Assassin | -6/Factory Mutant | -6/Lower Caves Mutant | -6/Lower Caves Infiltrator-Mutant | -6/Data Miner Infiltrator-Mutant | -5/Proximity Caves Infiltrator-Assassin | -5/Factory Scavenger-Gunner | -5/Garrison Infiltrator-Assassin | -5/Factory Scavenger-Mutant | -5/Garrison Scavenger-Mutant | -4/Factory Scavenger-Gunner | -4/Garrison Scavenger-Gunner | -4/Factory Gunner | -4/Garrison Infiltrator-Gunner | -3/Research Infiltrator-Mutant | -2/Research Infiltrator-Mutant | -2/DSF Infiltrator-Mutant | -1/Access Resources | -11 -10 -10 -9 -9 -9 -8 -8 -8 -8 -8 -7 -7 -7 -6 -6 -6 -6 -5 -5 -5 -5 -5 -4 -4 -4 -4 -3 -2 -2 -1 ----------- Run | Jun Mat Min Mat Min Exi Min Mat Gar Mat Gar Fac Low Low Fac Low Low Dat Pro Fac Gar Fac Gar Fac Gar Fac Gar Res Res DSF Acc Matter Collected 11491 | 206 37 33 618 251 . 30 636 183 213 377 390 668 273 . 573 80 200 34 157 533 206 489 1303 402 174 1019 83 90 351 1882 Remotely 4598 | . . . 352 40 . . 351 113 173 298 257 312 . . . . . . . 210 . . 364 319 174 449 . . 321 865 Salvage Created 9921 | 90 49 . 697 415 . . 1207 301 169 426 243 265 158 . 743 78 49 34 157 459 276 186 1069 455 68 933 70 . 128 1196 Parts 432 | 10 6 . 39 26 . . 63 17 6 34 16 8 2 . 22 4 2 3 8 25 9 11 31 16 3 28 6 . 4 33 Haulers Intercepted 6 | . . . 2 . . . 1 . . . . . . . . . . . . . . . 2 . . 1 . . . . Recyclers Shooed 4 | 1 . . . . . . . . . . . . . . . . . . . . . . 1 . . . . . . 2 Parts Field Recycled . | . . . . . . . . . . . . . . . . . . . . . . . . . . . . . . . Retrieved Matter . | . . . . . . . . . . . . . . . . . . . . . . . . . . . . . . . Parts Self-Destructed 30 | . . . . . . . . . . . . 16 3 . 9 2 . . . . . . . . . . . . . . Prevented 5 | . . . . . . . . . . . . . . . 5 . . . . . . . . . . . . . . . Kills | -11 -10 -10 -9 -9 -9 -8 -8 -8 -8 -8 -7 -7 -7 -6 -6 -6 -6 -5 -5 -5 -5 -5 -4 -4 -4 -4 -3 -2 -2 -1 ------- Run | Jun Mat Min Mat Min Exi Min Mat Gar Mat Gar Fac Low Low Fac Low Low Dat Pro Fac Gar Fac Gar Fac Gar Fac Gar Res Res DSF Acc Combat Hostiles Destroyed 202 | . 3 . 12 8 . . 21 9 5 22 8 8 3 . 13 2 4 . . 15 5 8 12 11 2 14 1 . 3 13 Melee 1 | . . . . . . . . . . . 1 . . . . . . . . . . . . . . . . . . . Guns 48 | . 3 . 10 5 . . 10 5 3 7 . . . . . . . . . 4 . . . . . . . . . 1 Cannons 82 | . . . . . . . 2 . . . 7 6 1 . 6 2 . . . 7 4 8 9 7 2 10 1 . 1 9 AOE 60 | . . . 2 3 . . 8 4 1 15 . 2 2 . 6 . 4 . . 4 1 . 1 4 . 1 . . 1 1 Classes Destroyed 19 | 1 1 . 6 2 . . 2 . . . 1 . 1 . 1 . . . . . . 1 1 . . 2 . . . . Worker 10 | . . . 2 3 . . . . . . . . . . . . . . 2 . . . 1 . . . 2 . . . Builder 5 | . . . 1 . . . 1 . . . . . . . . . . . . . . . 1 . 1 . . . . 1 Tunneler 8 | 5 . . . . . . . . 1 . . . . . . . . . . . . . 1 . . . 1 . . . Hauler 6 | . . . 2 . . . 1 . . . . . . . . . . . . . . . 2 . . 1 . . . . Recycler 11 | . . . . 1 . . 1 . . . . . . . . . . . 1 . 1 . 3 . . . . . . 4 Watcher 10 | . . . 1 . . . 2 . . . 1 . . . . . . . . . . . 1 1 . . 2 . . 2 Swarmer 61 | . 3 . 1 3 . . 4 4 2 14 3 2 2 . 3 . . . . 10 . 2 3 4 . . 1 . . . Cutter 3 | . . . . . . . . . . . . . . . . . . . . . . 3 . . . . . . . . Grunt 58 | . . . 9 4 . . 9 . 3 2 2 3 . . 3 1 . . . 1 2 2 5 5 . 4 . . . 3 Brawler 7 | . . . . 1 . . . . . 2 . 1 . . . . . . . . 1 . . . . 2 . . . . Duelist 4 | . . . . . . . 1 . . . . . . . 1 . . . . . 2 . . . . . . . . . Sentry 32 | . . . 2 . . . 7 5 . 4 2 2 . . . 1 . . . 4 . . 1 1 1 2 . . . . Specialist 7 | . . . . . . . . . . . . . . . . . . . . . . . . . . 5 . . . 2 Hunter 4 | . . . . . . . 2 . . . . . . . . . . . . . . . . . . . . . 2 . Programmer 10 | . . . . . . . . . . . 1 . . . . . . . . . . 1 2 1 1 . . . . 4 Heavy 3 | . . . . . . . . . . . . . . . . . . . . . . . 1 . . . . . 1 1 Behemoth 4 | . . . . . . . . . . . . . . . . . . . . . . . . . . 1 . . . 3 Enhanced Grunt 4 | . . . . . . . . . . . . . . . . . 4 . . . . . . . . . . . . . Samaritan 6 | . . . . . . . . . . . . . 2 . 3 . . 1 . . . . . . . . . . . . Thug 6 | . . . . . . . . . . . . . 1 . 5 . . . . . . . . . . . . . . . Butcher 2 | . . . . . . . . . . . . . . . 2 . . . . . . . . . . . . . . . Mutant 1 | . . . . . . . . . . . . . . . 1 . . . . . . . . . . . . . . . Best Kill Streak 10 | 3 3 . 4 3 . . 6 4 5 4 4 6 2 . 4 1 4 . 2 10 6 5 7 4 1 6 4 . 2 5 Combat Bots Only 10 | . 3 . 4 3 . . 4 4 4 4 4 6 2 . 4 1 4 . . 10 5 5 5 4 1 6 1 . 2 3 Max Kills in Single Turn 4 | 1 1 . 2 2 . . 4 3 2 4 1 2 2 . 2 1 2 1 1 3 1 1 1 2 1 1 2 . 1 1 Gunslinging 1 | . . . . . . . . 1 . . . . . . . . . . . . . . . . . . . . . . Exploded 4 | . . . 1 2 . . 4 3 1 4 . 2 2 . 2 . 2 . . 3 1 . 1 2 . 1 . . 1 1 Melee 1 | . . . . . . . . . . . 1 . . . . . . . . . . . . . . . . . . . Uniques/NPCs Destroyed . | . . . . . . . . . . . . . . . . . . . . . . . . . . . . . . . Combat | -11 -10 -10 -9 -9 -9 -8 -8 -8 -8 -8 -7 -7 -7 -6 -6 -6 -6 -5 -5 -5 -5 -5 -4 -4 -4 -4 -3 -2 -2 -1 -------- Run | Jun Mat Min Mat Min Exi Min Mat Gar Mat Gar Fac Low Low Fac Low Low Dat Pro Fac Gar Fac Gar Fac Gar Fac Gar Res Res DSF Acc Damage Taken 15603 | . 104 . 455 273 . . 943 160 223 449 811 486 573 . 746 107 1143 . . 434 333 413 772 374 360 1320 21 . 576 4527 Core 1339 | . 13 . 70 34 . . 122 44 30 32 45 24 136 . 34 10 307 . . 24 . 36 81 40 21 40 . . . 196 Absorbed by Shields 437 | . . . . . . . . . . . 240 8 . . . . 23 . . 92 . . . . . 74 . . . . Reduced by Siege Mode 635 | . . . . . . . . . . . . . . . . . . . . . . . . . . 83 . . 94 458 Redirected to Shielding 2 | . . . . . . . . . . . . 2 . . . . . . . . . . . . . . . . . . Ignored by Resistances 1864 | . . . . . . . . . . . 17 17 6 . . . . . . . . . 66 . . 77 . . 198 1483 Core Remaining (%) 83 | 100 . 94 . . . 74 . . . 58 . . 70 . . . . 58 . . . 94 . . . 84 100 . 100 87 Volleys Fired 511 | 10 11 . 46 15 . . 45 13 14 29 20 13 10 1 34 5 8 . . 21 9 16 41 16 6 28 11 5 15 69 Largest 4 | 2 2 . 2 2 . . 2 2 2 2 2 2 2 2 2 2 2 . . 3 2 2 2 2 2 2 2 1 2 4 Hottest 264 | 70 70 . 90 90 . . 122 122 122 122 122 96 96 96 96 96 78 . . 158 131 136 153 140 140 140 203 120 149 264 Shots Fired 919 | 20 22 . 89 28 . . 78 21 27 51 40 25 19 2 59 10 14 . . 39 13 17 56 29 10 47 13 5 26 159 Gun 345 | 20 22 . 86 28 . . 62 18 26 41 4 . . . . . . . . 12 . . 6 . . . . . . 20 Cannon 500 | . . . . . . . 7 . . . 36 24 16 2 50 10 3 . . 25 13 17 46 25 10 39 13 5 22 137 Launcher 72 | . . . 3 . . . 9 3 1 10 . 1 1 . 9 . 11 . . 2 . . 4 4 . 8 . . 4 2 Special 2 | . . . . . . . . . . . . . 2 . . . . . . . . . . . . . . . . . Kinetic 554 | 10 11 . 34 . . . 8 . . . 36 24 16 2 50 10 3 . . 34 13 17 46 25 10 39 9 . 20 137 Thermal 219 | 10 11 . 34 . . . 35 18 26 41 4 . . . . . . . . 3 . . 6 . . . 4 5 2 20 Explosive 32 | . . . . . . . 1 3 1 10 . 1 1 . 2 . 11 . . 2 . . . . . . . . . . Electromagnetic 112 | . . . 21 28 . . 34 . . . . . . . 7 . . . . . . . 4 4 . 8 . . 4 2 Impact 2 | . . . . . . . . . . . . . 2 . . . . . . . . . . . . . . . . . Robot Hit Streak 59 | 3 3 . 18 7 . . 10 6 10 7 18 15 12 . 9 8 13 . . 17 18 6 15 22 29 34 29 . 43 59 Robot Miss Streak 9 | 2 3 . 3 3 . . 5 1 3 3 4 1 . . 2 2 1 . . 2 1 4 9 . . 2 . . 1 1 Penetration Max 1 | . . . . . . . . . . . . . . . 1 . . . . 1 . . . . . . 1 . . . Secondary Targets 7 | . . . 2 2 . . . 1 . 2 . . . . . . . . . . . . . . . . . . . . Max Gunslinging Chain 1 | . . . 1 1 . . . 1 . 1 . . . . . . . . . . . . . . . . . . . . Shots Hit Robots 653 | 12 9 . 62 23 . . 63 13 20 29 30 21 8 . 38 8 14 2 3 19 12 15 44 18 8 32 8 . 23 119 Core Hits 392 | 6 4 . 32 18 . . 53 10 7 24 12 10 4 . 28 4 27 1 1 19 5 13 26 11 2 17 3 . 7 48 Critical Kills . | . . . . . . . . . . . . . . . . . . . . . . . . . . . . . . . Critical Parts Destroyed 5 | . . . 1 . . . . . . . . . . . 1 . . . 1 . . . 1 . . . . . . 1 Critical Strikes 71 | 2 . . 5 . . . 6 2 2 3 6 1 2 . 4 . . . 1 3 1 . 4 6 1 9 3 . . 10 Burn 18 | 2 . . 4 . . . 5 2 2 3 . . . . . . . . . . . . . . . . . . . . Destroy 2 | . . . 1 . . . . . . . . . . . . . . . . . . . . . . . . . . 1 Blast 47 | . . . . . . . . . . . 6 1 2 . 3 . . . . 3 1 . 3 6 1 9 3 . . 9 Smash 3 | . . . . . . . . . . . . . . . 1 . . . 1 . . . 1 . . . . . . . Sever 1 | . . . . . . . 1 . . . . . . . . . . . . . . . . . . . . . . . Melee Attacks 74 | . . . . . . . 2 7 4 6 6 . 1 3 5 . 1 3 7 2 6 3 8 . 10 . . . . . Impact 42 | . . . . . . . . . . . . . 1 3 5 . . . 4 2 6 3 8 . 10 . . . . . Slashing 28 | . . . . . . . 2 7 . 6 6 . . . . . 1 3 3 . . . . . . . . . . . Piercing . | . . . . . . . . . . . . . . . . . . . . . . . . . . . . . . . Sneak Attacks 13 | . . . . . . . . . . . . . 1 . 4 . 1 2 3 . . . 1 . 1 . . . . . Combat Hostiles . | . . . . . . . . . . . . . . . . . . . . . . . . . . . . . . . Follow-up Attacks . | . . . . . . . . . . . . . . . . . . . . . . . . . . . . . . . Damage Inflicted 33882 | 152 120 . 1241 503 . . 2099 607 513 1898 889 715 437 . 2200 218 1677 156 261 1539 901 757 3480 1611 674 2552 725 . 1533 6424 Guns 4451 | 152 120 . 969 343 . . 899 286 382 572 75 . . . . . . . . 265 . . 64 . . . . . . 324 Cannons 20127 | . . . . . . . 133 . . . 771 552 195 . 994 218 83 . . 992 901 757 2966 1332 538 2069 725 . 1207 5694 Explosions 8018 | . . . 272 160 . . 998 321 131 1326 . 163 139 . 914 . 1521 . . 282 . . 356 279 . 483 . . 326 347 Melee 1173 | . . . . . . . 36 . . . 43 . 82 . 292 . 73 156 261 . . . 94 . 136 . . . . . Ramming 92 | . . . . . . . 33 . . . . . . . . . . . . . . . . . . . . . . 59 Kinetic 20922 | 66 57 . 347 . . . 133 . . . 771 552 195 . 994 218 83 . . 1178 901 757 2966 1332 538 2069 725 . 1207 5833 Thermal 3320 | 86 63 . 420 160 . . 740 286 382 572 75 . . . 60 . . . . 79 . . 64 34 . . . . 114 185 Explosive 4396 | . . . . . . . 191 321 131 1326 . 163 139 . 322 . 1521 . . 282 . . . . . . . . . . Electromagnetic 3958 | . . . 474 343 . . 966 . . . . . . . 532 . . . . . . . 356 245 . 483 . . 212 347 Impact 808 | . . . . . . . . . . . . . 103 . 292 . . . 183 . . . 94 . 136 . . . . . Slashing 386 | . . . . . . . 36 . . . 43 . . . . . 73 156 78 . . . . . . . . . . . Piercing . | . . . . . . . . . . . . . . . . . . . . . . . . . . . . . . . Highest Corruption 3 | . . . . . . . . . . . 2 2 . . . . . . . . . . 1 1 1 . . . . 3 Average Corruption 1 | . . . . . . . . . . . 1 1 . . . . . . . . . . 1 1 1 . . . . 2 Corruption Purged 3 | . . . . . . . . . . . . 2 . . . . . . . . . . . . 1 . . . . . Corruption Blocked 8 | . . . . . . . . 8 . . . . . . . . . . . . . . . . . . . . . . Effects 8 | . . . . . . . . . . . . . . . . . . . . . . . . 2 2 . . . . 4 Message Errors 1 | . . . . . . . . . . . . . . . . . . . . . . . . . 1 . . . . . Matter Fused 1 | . . . . . . . . . . . . . . . . . . . . . . . . 1 . . . . . . Heat Flow Errors 3 | . . . . . . . . . . . . . . . . . . . . . . . . 1 . . . . . 2 Energy Discharges 1 | . . . . . . . . . . . . . . . . . . . . . . . . . . . . . . 1 Data Loss (minor) 1 | . . . . . . . . . . . . . . . . . . . . . . . . . 1 . . . . . Weapon Failures 1 | . . . . . . . . . . . . . . . . . . . . . . . . . . . . . . 1 Overload Shots . | . . . . . . . . . . . . . . . . . . . . . . . . . . . . . . . Overflow Damage 2410 | . . . . . . . 15 9 . 108 . 66 32 . 256 . . 77 143 65 30 182 409 202 134 116 176 . 3 387 Projectiles 1564 | . . . . . . . . . . . . 18 32 . 6 . . . . 65 30 182 315 202 38 116 176 . . 384 Explosions 206 | . . . . . . . 15 9 . 108 . 48 . . 23 . . . . . . . . . . . . . 3 . Melee 640 | . . . . . . . . . . . . . . . 227 . . 77 143 . . . 94 . 96 . . . . 3 Knockbacks 63 | . . . . . . . . . . . 1 4 . . 6 1 2 . . 2 5 12 8 7 1 3 2 . . 9 Impact 1 | . . . . . . . . . . . . . . . . . . . . . . . . . . . . . . 1 Kinetic 59 | . . . . . . . . . . . 1 4 . . 6 1 2 . . 2 5 9 8 7 1 3 2 . . 8 Secondary 3 | . . . . . . . . . . . . . . . . . . . . . . 3 . . . . . . . . Self-Inflicted Damage 248 | . . . 14 75 . . 75 . . . . . . . 70 . . . . . . . . . . 14 . . . . Shots 9 | . . . 1 2 . . 2 . . . . . . . 3 . . . . . . . . . . 1 . . . . Rammed 3 | . . . . . . . . . . . . . . . . . . . . . . . . . . . . . . 3 Targets Rammed 6 | . . . . . . . 3 . . . . . . . . . . . . . . . . . . . . . . 3 Kicked 3 | . . . . . . . 3 . . . . . . . . . . . . . . . . . . . . . . . Crushed . | . . . . . . . . . . . . . . . . . . . . . . . . . . . . . . . Highest Temperature 406 | 38 81 . 90 32 . . 90 93 219 68 299 202 99 15 35 . . . . 3 211 52 345 162 251 393 162 64 72 406 Average Temperature 73 | 13 35 . 22 10 . . 32 37 66 29 121 92 38 10 8 . . . . 3 100 19 75 41 93 130 61 33 33 117 Received Heat Transfer 2189 | . . . 222 84 . . 297 27 117 144 119 100 66 . 310 33 . . . 18 54 . 84 30 27 457 . . . . Effects 8 | . . . . . . . . . . . . . . . . . . . . . . . 1 . . 1 . . . 6 Energy Bleed 2 | . . . . . . . . . . . . . . . . . . . . . . . . . . 1 . . . 1 Interference 4 | . . . . . . . . . . . . . . . . . . . . . . . 1 . . . . . . 3 Matter Decay 1 | . . . . . . . . . . . . . . . . . . . . . . . . . . . . . . 1 Damage (minor) 1 | . . . . . . . . . . . . . . . . . . . . . . . . . . . . . . 1 Siege Activations 12 | . . . . . . . . . . . . . . . . . . . . . . . . . . 2 . . 2 8 Total Turns 178 | . . . . . . . . . . . . . . . . . . . . . . . . . . 32 . . 32 114 Longest Duration 43 | . . . . . . . . . . . . . . . . . . . . . . . . . . 30 . . 25 43 Robots Corrupted 10 | . . . . . . . 1 . . . . . . . 1 . . . . . . . 2 . . 3 . . 1 2 Combat Hostiles 10 | . . . . . . . 1 . . . . . . . 1 . . . . . . . 2 . . 3 . . 1 2 Parts Fried 38 | . . . 3 1 . . 5 . . . . . 1 . 4 . . . 1 . . . 4 . 4 5 . . 1 9 Impact Corruptions 31 | . . . . . . . . . . . . . 2 . 18 . . . 4 . . . 3 . 3 . . . . 1 Robots Melted 1 | . . . . . . . . . 1 . . . . . . . . . . . . . . . . . . . . . Combat Hostiles 1 | . . . . . . . . . 1 . . . . . . . . . . . . . . . . . . . . . Parts Melted 23 | . . . 5 . . . 6 4 . 6 . . . . . . . . . 1 . . . . . . . . . 1 Heat Transferred 6684 | 407 185 . 1358 100 . . 1482 629 814 1089 111 . . . 50 . . . . 111 . . 100 50 . . . . 50 148 Parts Sabotaged . | . . . . . . . . . . . . . . . . . . . . . . . . . . . . . . . Parts Stolen . | . . . . . . . . . . . . . . . . . . . . . . . . . . . . . . . Parts Stripped . | . . . . . . . . . . . . . . . . . . . . . . . . . . . . . . . Power Chain Reactions 11 | . . . 1 3 . . 4 . . . . . . . 1 . . . . . . . . 1 . . . . 1 . Missiles Intercepted . | . . . . . . . . . . . . . . . . . . . . . . . . . . . . . . . Alert | -11 -10 -10 -9 -9 -9 -8 -8 -8 -8 -8 -7 -7 -7 -6 -6 -6 -6 -5 -5 -5 -5 -5 -4 -4 -4 -4 -3 -2 -2 -1 ------- Run | Jun Mat Min Mat Min Exi Min Mat Gar Mat Gar Fac Low Low Fac Low Low Dat Pro Fac Gar Fac Gar Fac Gar Fac Gar Res Res DSF Acc Peak Influence 795 | 25 99 38 455 325 . . 345 479 401 795 592 . . 124 . . . . 86 496 367 523 474 646 464 406 330 227 252 317 Initial 417 | . 16 38 14 165 . . . 108 228 65 417 . . 47 . . . . . 60 260 256 274 323 336 . 228 185 173 151 Average 279 | 11 56 38 247 176 . . 185 347 279 426 426 . . 104 . . . . 34 310 302 431 367 536 321 315 273 199 215 212 Maximum Alert Level 3 | . . . 2 1 . . 1 2 2 3 2 . . . . . . . . 2 1 2 2 2 2 2 1 1 1 1 Low Security (%) 31 | 100 100 100 33 49 . 100 44 8 10 16 2 . . 100 . . . . 100 25 . . . . 27 9 . 67 47 56 Level 1 44 | . . . 55 50 . . 55 59 84 36 7 . . . . . . . . 36 100 39 59 10 51 70 100 32 52 43 Level 2 22 | . . . 10 . . . . 32 4 29 89 . . . . . . . . 38 . 60 40 89 21 20 . . . . Level 3 1 | . . . . . . . . . . 17 . . . . . . . . . . . . . . . . . . . . Level 4 . | . . . . . . . . . . . . . . . . . . . . . . . . . . . . . . . Level 5 . | . . . . . . . . . . . . . . . . . . . . . . . . . . . . . . . High Security . | . . . . . . . . . . . . . . . . . . . . . . . . . . . . . . . Max Security . | . . . . . . . . . . . . . . . . . . . . . . . . . . . . . . . Squads Dispatched 25 | . 2 1 3 . . . 4 . . . 5 . . 1 . . . . . . 1 . 2 . 1 . 1 . 1 3 Investigation 13 | . 1 1 3 . . . 4 . . . 4 . . . . . . . . . . . . . . . . . . . Extermination 7 | . . . . . . . . . . . 1 . . . . . . . . . 1 . 1 . 1 . 1 . . 2 Reinforcement 5 | . 1 . . . . . . . . . . . . 1 . . . . . . . . 1 . . . . . 1 1 Assault . | . . . . . . . . . . . . . . . . . . . . . . . . . . . . . . . Garrison . | . . . . . . . . . . . . . . . . . . . . . . . . . . . . . . . Intercept . | . . . . . . . . . . . . . . . . . . . . . . . . . . . . . . . Searches Triggered . | . . . . . . . . . . . . . . . . . . . . . . . . . . . . . . . Construction Impeded . | . . . . . . . . . . . . . . . . . . . . . . . . . . . . . . . Haulers Reinforced . | . . . . . . . . . . . . . . . . . . . . . . . . . . . . . . . Active Scanning Responses . | . . . . . . . . . . . . . . . . . . . . . . . . . . . . . . . Cargo Convoy Interrupts . | . . . . . . . . . . . . . . . . . . . . . . . . . . . . . . . Stealth | -11 -10 -10 -9 -9 -9 -8 -8 -8 -8 -8 -7 -7 -7 -6 -6 -6 -6 -5 -5 -5 -5 -5 -4 -4 -4 -4 -3 -2 -2 -1 --------- Run | Jun Mat Min Mat Min Exi Min Mat Gar Mat Gar Fac Low Low Fac Low Low Dat Pro Fac Gar Fac Gar Fac Gar Fac Gar Res Res DSF Acc Distress Signals 7 | . . . 2 . . . 2 . 2 . 1 . . . . . . . . . . . . . . . . . . . Communications Jammed 19 | . . . . . . . . . . . . . . . . . . . . . . 1 9 . . . . . 8 1 Distress Signals 8 | . . . . . . . . . . . . . . . . . . . . . . 1 7 . . . . . . . Times Spotted 280 | . 4 . 25 9 . . 37 9 10 25 16 12 6 2 14 4 4 . 3 14 6 12 17 8 4 14 4 1 3 17 Peak Tracking Total 9 | . 3 . 6 3 . . 5 3 3 4 5 9 3 1 4 3 4 . 2 8 3 6 6 2 1 5 3 . 2 4 Tactical Retreats 11 | . . . . . . . . 1 . . 1 . 2 . . . . . . 1 . 1 3 . . 2 . . . . Traps | -11 -10 -10 -9 -9 -9 -8 -8 -8 -8 -8 -7 -7 -7 -6 -6 -6 -6 -5 -5 -5 -5 -5 -4 -4 -4 -4 -3 -2 -2 -1 ------- Run | Jun Mat Min Mat Min Exi Min Mat Gar Mat Gar Fac Low Low Fac Low Low Dat Pro Fac Gar Fac Gar Fac Gar Fac Gar Res Res DSF Acc Traps Triggered 27 | . . . . . . . . 4 . 1 3 . . . . . . . . 7 1 2 2 3 . 4 . . . . Indirectly 2 | . . . . . . . . . . . . . . . . . . . . . . . . 1 . 1 . . . . Trap Hack Attempts . | . . . . . . . . . . . . . . . . . . . . . . . . . . . . . . . Triggered . | . . . . . . . . . . . . . . . . . . . . . . . . . . . . . . . Disarmed . | . . . . . . . . . . . . . . . . . . . . . . . . . . . . . . . Reprogrammed . | . . . . . . . . . . . . . . . . . . . . . . . . . . . . . . . Reused . | . . . . . . . . . . . . . . . . . . . . . . . . . . . . . . . Traps Extracted . | . . . . . . . . . . . . . . . . . . . . . . . . . . . . . . . Installed . | . . . . . . . . . . . . . . . . . . . . . . . . . . . . . . . Triggered 1 | . . . . . . . . . . . . . . . . 1 . . . . . . . . . . . . . . Machines | -11 -10 -10 -9 -9 -9 -8 -8 -8 -8 -8 -7 -7 -7 -6 -6 -6 -6 -5 -5 -5 -5 -5 -4 -4 -4 -4 -3 -2 -2 -1 ---------- Run | Jun Mat Min Mat Min Exi Min Mat Gar Mat Gar Fac Low Low Fac Low Low Dat Pro Fac Gar Fac Gar Fac Gar Fac Gar Res Res DSF Acc Machines Disabled 22 | . . . 1 . . . 2 1 1 3 2 . . 1 . . . . . 1 . 1 . 3 2 2 . 1 . 1 Max in Single Turn 1 | . . . 1 . . . 1 1 . 1 1 . . 1 . . . . . 1 . 1 . 1 1 1 . 1 . 1 Garrison Access 1 | . . . . . . . . . . . . . . 1 . . . . . . . . . . . . . . . . Garrison Relay 2 | . . . . . . . . 1 . 1 . . . . . . . . . . . . . . . . . . . . Machines Repaired . | . . . . . . . . . . . . . . . . . . . . . . . . . . . . . . . Machines Sabotaged . | . . . . . . . . . . . . . . . . . . . . . . . . . . . . . . . Overloaded Fab Kills . | . . . . . . . . . . . . . . . . . . . . . . . . . . . . . . . Hacking | -11 -10 -10 -9 -9 -9 -8 -8 -8 -8 -8 -7 -7 -7 -6 -6 -6 -6 -5 -5 -5 -5 -5 -4 -4 -4 -4 -3 -2 -2 -1 --------- Run | Jun Mat Min Mat Min Exi Min Mat Gar Mat Gar Fac Low Low Fac Low Low Dat Pro Fac Gar Fac Gar Fac Gar Fac Gar Res Res DSF Acc Machines Accessed 59 | . 3 1 8 1 1 . 11 2 2 4 5 . . 2 . . 3 . 4 1 1 1 1 1 2 . 1 4 . . Terminals 41 | . 3 . 6 1 . . 9 2 1 4 4 . . 1 . . . . 1 1 . 1 . 1 1 . 1 4 . . Fabricators 2 | . . . . . . . . . . . 1 . . . . . . . 1 . . . . . . . . . . . Repair Stations . | . . . . . . . . . . . . . . . . . . . . . . . . . . . . . . . Recycling Units 4 | . . . 2 . . . 1 . . . . . . . . . . . 1 . . . . . . . . . . . Scanalyzers . | . . . . . . . . . . . . . . . . . . . . . . . . . . . . . . . Garrison Access 7 | . . . . . . . 1 . 1 . . . . 1 . . . . 1 . 1 . 1 . 1 . . . . . Total Hacks 164 | . 14 1 23 1 1 . 35 6 5 8 10 . . 5 . . 26 . 11 2 1 1 1 1 5 . 1 6 . . Successful 98 | . 6 1 11 1 1 . 16 1 4 2 5 . . 4 . . 26 . 10 1 1 . 1 1 3 . 1 2 . . Failed 65 | . 8 . 12 . . . 18 5 1 6 5 . . 1 . . . . 1 1 . 1 . . 2 . . 4 . . Catastrophic 10 | . 1 . 1 . . . 1 . . 2 1 . . . . . . . . 1 . . . . 1 . . 2 . . Database Lockouts 1 | . . . . . . . 1 . . . . . . . . . . . . . . . . . . . . . . . Manual 77 | . 12 . 20 2 1 . 23 . 1 . 4 . . . . . . . 8 . . . . . 4 . . 2 . . Terminals 119 | . 14 . 21 1 . . 33 6 4 8 9 . . 3 . . . . 5 2 . 1 . 1 4 . 1 6 . . Fabricators 4 | . . . . . . . . . . . 1 . . . . . . . 3 . . . . . . . . . . . Repair Stations . | . . . . . . . . . . . . . . . . . . . . . . . . . . . . . . . Recycling Units 5 | . . . 2 . . . 1 . . . . . . . . . . . 2 . . . . . . . . . . . Scanalyzers . | . . . . . . . . . . . . . . . . . . . . . . . . . . . . . . . Garrison Access 8 | . . . . . . . 1 . 1 . . . . 2 . . . . 1 . 1 . 1 . 1 . . . . . Terminal Hacks 66 | . 3 1 5 1 1 . 11 1 2 2 2 . . 2 . . 26 . 2 1 . . . 1 2 . 1 2 . . Record 6 | . . . . . . . . . . . . . . . . . 6 . . . . . . . . . . . . . Part Schematic 10 | . . . . . . . . . . . . . . . . . 10 . . . . . . . . . . . . . Robot Schematic 7 | . . . . . . . . . . . . . . . . . 7 . . . . . . . . . . . . . Robot Analysis 9 | . 1 . 3 . . . 4 . . . . . . 1 . . . . . . . . . . . . . . . . Prototype ID Bank 3 | . . . . . . . . . . . . . . . . . 3 . . . . . . . . . . . . . Open Door 2 | . . 1 . . . . . . . 1 . . . . . . . . . . . . . . . . . . . . Open DSF 1 | . . . . . . . . . . . . . . . . . . . . . . . . . . . . 1 . . Level Access Points 1 | . . . . . . . . . . . . . . . . . . . . . . . . . . . 1 . . . Branch Access Points 3 | . . . 1 . . . . . . . . . . 1 . . . . 1 . . . . . . . . . . . Emergency Access Points 2 | . . . . . . . . . . . . . . . . . . . . 1 . . . 1 . . . . . . Terminal Index 3 | . 1 . 1 . . . 1 . . . . . . . . . . . . . . . . . . . . . . . Garrison Index 1 | . . . . . . . 1 . . . . . . . . . . . . . . . . . . . . . . . Unreport Threat 10 | . . . . 1 . . 3 . 2 . 2 . . . . . . . . . . . . . 2 . . . . . Locate Traps 5 | . 1 . . . . . 2 . . . . . . . . . . . 1 . . . . . . . . 1 . . Patrol Navigation 2 | . . . . . . . . 1 . 1 . . . . . . . . . . . . . . . . . . . . Derelict Proto ID Bank 1 | . . . . . 1 . . . . . . . . . . . . . . . . . . . . . . . . . Fabricator Hacks 1 | . . . . . . . . . . . . . . . . . . . 1 . . . . . . . . . . . Network Status 1 | . . . . . . . . . . . . . . . . . . . 1 . . . . . . . . . . . Repair Station Hacks . | . . . . . . . . . . . . . . . . . . . . . . . . . . . . . . . Recycling Unit Hacks . | . . . . . . . . . . . . . . . . . . . . . . . . . . . . . . . Scanalyzer . | . . . . . . . . . . . . . . . . . . . . . . . . . . . . . . . Garrison Access Hacks 8 | . . . . . . . 1 . 1 . . . . 2 . . . . 1 . 1 . 1 . 1 . . . . . Unlock Access 6 | . . . . . . . 1 . 1 . . . . . . . . . 1 . 1 . 1 . 1 . . . . . Seal Access 1 | . . . . . . . . . . . . . . 1 . . . . . . . . . . . . . . . . Coupler Status 1 | . . . . . . . . . . . . . . 1 . . . . . . . . . . . . . . . . Unauthorized Hacks 23 | . 3 . 6 . . . 4 . 1 . 3 . . . . . . . 6 . . . . . . . . . . . Terminals 16 | . 3 . 4 . . . 3 . 1 . 3 . . . . . . . 2 . . . . . . . . . . . Track 3 | . . . 1 . . . 1 . 1 . . . . . . . . . . . . . . . . . . . . . Botnet 7 | . 2 . 2 . . . 1 . . . 1 . . . . . . . 1 . . . . . . . . . . . Operators 4 | . 1 . 1 . . . . . . . 1 . . . . . . . 1 . . . . . . . . . . . Search 2 | . . . . . . . 1 . . . 1 . . . . . . . . . . . . . . . . . . . Fabricators 2 | . . . . . . . . . . . . . . . . . . . 2 . . . . . . . . . . . Fabnet 1 | . . . . . . . . . . . . . . . . . . . 1 . . . . . . . . . . . Haulers 1 | . . . . . . . . . . . . . . . . . . . 1 . . . . . . . . . . . Repair Stations . | . . . . . . . . . . . . . . . . . . . . . . . . . . . . . . . Recycling Units 5 | . . . 2 . . . 1 . . . . . . . . . . . 2 . . . . . . . . . . . Reject 1 | . . . . . . . . . . . . . . . . . . . 1 . . . . . . . . . . . Recyclers 1 | . . . . . . . . . . . . . . . . . . . 1 . . . . . . . . . . . Tunnel 3 | . . . 2 . . . 1 . . . . . . . . . . . . . . . . . . . . . . . Scanalyzers . | . . . . . . . . . . . . . . . . . . . . . . . . . . . . . . . Garrison Access . | . . . . . . . . . . . . . . . . . . . . . . . . . . . . . . . Data Cores Recovered . | . . . . . . . . . . . . . . . . . . . . . . . . . . . . . . . Used . | . . . . . . . . . . . . . . . . . . . . . . . . . . . . . . . Hacking Detections 43 | . 3 . 6 1 . . 9 2 1 4 4 . . 1 . . . . 2 1 1 1 . . 2 . 1 4 . . Full Trace Events 10 | . 1 . 1 . . . 2 1 . 2 2 . . . . . . . . 1 . . . . . . . . . . Feedback Events . | . . . . . . . . . . . . . . . . . . . . . . . . . . . . . . . Feedback Blocked . | . . . . . . . . . . . . . . . . . . . . . . . . . . . . . . . Robot Schematics Acquired 7 | . . . . . . . . . . . . . . . . . 7 . . . . . . . . . . . . . Robots Built . | . . . . . . . . . . . . . . . . . . . . . . . . . . . . . . . Authchips . | . . . . . . . . . . . . . . . . . . . . . . . . . . . . . . . Time . | . . . . . . . . . . . . . . . . . . . . . . . . . . . . . . . Total Robot Build Rating . | . . . . . . . . . . . . . . . . . . . . . . . . . . . . . . . Part Schematics Acquired 10 | . . . . . . . . . . . . . . . . . 10 . . . . . . . . . . . . . Parts Built . | . . . . . . . . . . . . . . . . . . . . . . . . . . . . . . . Authchips . | . . . . . . . . . . . . . . . . . . . . . . . . . . . . . . . Time . | . . . . . . . . . . . . . . . . . . . . . . . . . . . . . . . Total Part Build Rating . | . . . . . . . . . . . . . . . . . . . . . . . . . . . . . . . Parts Repaired . | . . . . . . . . . . . . . . . . . . . . . . . . . . . . . . . Time . | . . . . . . . . . . . . . . . . . . . . . . . . . . . . . . . Parts Recycled . | . . . . . . . . . . . . . . . . . . . . . . . . . . . . . . . Recycled Matter . | . . . . . . . . . . . . . . . . . . . . . . . . . . . . . . . Retrieved Matter . | . . . . . . . . . . . . . . . . . . . . . . . . . . . . . . . Retrieved Components . | . . . . . . . . . . . . . . . . . . . . . . . . . . . . . . . Parts Scanalyzed . | . . . . . . . . . . . . . . . . . . . . . . . . . . . . . . . Part Schematics Acquired . | . . . . . . . . . . . . . . . . . . . . . . . . . . . . . . . Parts Damaged . | . . . . . . . . . . . . . . . . . . . . . . . . . . . . . . . Bothacking | -11 -10 -10 -9 -9 -9 -8 -8 -8 -8 -8 -7 -7 -7 -6 -6 -6 -6 -5 -5 -5 -5 -5 -4 -4 -4 -4 -3 -2 -2 -1 ------------ Run | Jun Mat Min Mat Min Exi Min Mat Gar Mat Gar Fac Low Low Fac Low Low Dat Pro Fac Gar Fac Gar Fac Gar Fac Gar Res Res DSF Acc Used RIF Installer 7 | . . . . . . . . 1 . 1 . . . . . . . . . 1 . 1 . 1 . 2 . . . . Hotswap 1 | . . . . . . . . . . 1 . . . . . . . . . . . . . . . . . . . . Threat Obfuscator 1 | . . . . . . . . . . . . . . . . . . . . . . . . . . 1 . . . . Signal Jammer 1 | . . . . . . . . . . . . . . . . . . . . 1 . . . . . . . . . . Alert ID Control 1 | . . . . . . . . . . . . . . . . . . . . . . . . . . 1 . . . . Structural Interface 1 | . . . . . . . . . . . . . . . . . . . . . . 1 . . . . . . . . Program Shield 1 | . . . . . . . . . . . . . . . . . . . . . . . . 1 . . . . . . Robots Hacked 2 | . . . . . . . . . 1 . . . . . . . . . . . . . 1 . . . . . . . Non-combat . | . . . . . . . . . . . . . . . . . . . . . . . . . . . . . . . Combat 2 | . . . . . . . . . 1 . . . . . . . . . . . . . 1 . . . . . . . Robot Hacks Applied 4 | . . . . . . . . . 4 . . . . . . . . . . . . . . . . . . . . . find_shortcuts 1 | . . . . . . . . . 1 . . . . . . . . . . . . . . . . . . . . . find_garrison 1 | . . . . . . . . . 1 . . . . . . . . . . . . . . . . . . . . . scatter_targeting 1 | . . . . . . . . . 1 . . . . . . . . . . . . . . . . . . . . . formatsys_high 1 | . . . . . . . . . 1 . . . . . . . . . . . . . . . . . . . . . Relay Couplers Released 8 | . . . . . . . . 3 . 5 . . . . . . . . . . . . . . . . . . . . Machine Destruction 8 | . . . . . . . . 3 . 5 . . . . . . . . . . . . . . . . . . . . Attached 1 | . . . . . . . . . 1 . . . . . . . . . . . . . . . . . . . . . Fabnet Peak Effective % 3 | . . . . . . . . . . . . . . . . . . . . . . . 3 3 3 3 1 . . . Autooverrided 1 | . . . . . . . . . . . . . . . . . . . . . . . 1 . . . . . . . Robots Rewired 2 | . . . . . . . . . . . . 2 . . . . . . . . . . . . . . . . . . Allies Hacked . | . . . . . . . . . . . . . . . . . . . . . . . . . . . . . . . Hacks Repelled . | . . . . . . . . . . . . . . . . . . . . . . . . . . . . . . . Allies | -11 -10 -10 -9 -9 -9 -8 -8 -8 -8 -8 -7 -7 -7 -6 -6 -6 -6 -5 -5 -5 -5 -5 -4 -4 -4 -4 -3 -2 -2 -1 -------- Run | Jun Mat Min Mat Min Exi Min Mat Gar Mat Gar Fac Low Low Fac Low Low Dat Pro Fac Gar Fac Gar Fac Gar Fac Gar Res Res DSF Acc Total Allies 11 | . . . . 3 . . . . 1 2 . 2 . . . . . . . . . 2 1 . . . . . . . Largest Group 3 | . . . . 3 3 3 3 . 1 2 1 2 2 . . . . . . . . 2 1 . . . . . . . Highest-Rated Group 175 | . . . . 40 40 40 40 . 15 56 25 36 36 . . . . . . . . 175 12 . . . . . . . Highest-Rated Ally 95 | . . . . 16 16 16 16 . 15 31 25 20 20 . . . . . . . . 95 12 . . . . . . . Total Orders . | . . . . . . . . . . . . . . . . . . . . . . . . . . . . . . . Ally Attacks 77 | . . . . . . . 9 . 6 12 1 11 16 . . . . . . . . 15 7 . . . . . . . Total Damage 1459 | . . . . . . . 96 . 51 210 39 148 190 . . . . . . . . 668 57 . . . . . . . Kills 9 | . . . . . . . 1 . 1 1 1 1 1 . . . . . . . . 3 . . . . . . . . Allies Corrupted . | . . . . . . . . . . . . . . . . . . . . . . . . . . . . . . . Allies Melted . | . . . . . . . . . . . . . . . . . . . . . . . . . . . . . . . Intel | -11 -10 -10 -9 -9 -9 -8 -8 -8 -8 -8 -7 -7 -7 -6 -6 -6 -6 -5 -5 -5 -5 -5 -4 -4 -4 -4 -3 -2 -2 -1 ------- Run | Jun Mat Min Mat Min Exi Min Mat Gar Mat Gar Fac Low Low Fac Low Low Dat Pro Fac Gar Fac Gar Fac Gar Fac Gar Res Res DSF Acc Robot Analysis Total 143 | . 1 . 3 . . . 4 . . . . . . 1 . . 134 . . . . . . . . . . . . . Derelict Logs Recovered 7 | . . . . 1 . . . . . . . 2 1 . 2 . . 1 . . . . . . . . . . . . Drone Launches . | . . . . . . . . . . . . . . . . . . . . . . . . . . . . . . . Drone Recoveries . | . . . . . . . . . . . . . . . . . . . . . . . . . . . . . . . Exploration | -11 -10 -10 -9 -9 -9 -8 -8 -8 -8 -8 -7 -7 -7 -6 -6 -6 -6 -5 -5 -5 -5 -5 -4 -4 -4 -4 -3 -2 -2 -1 ------------- Run | Jun Mat Min Mat Min Exi Min Mat Gar Mat Gar Fac Low Low Fac Low Low Dat Pro Fac Gar Fac Gar Fac Gar Fac Gar Res Res DSF Acc Turns Passed 13098 | 116 188 180 511 523 282 83 1025 541 184 691 604 393 760 295 567 244 160 286 391 536 294 414 543 493 414 920 292 182 263 723 Spaces Moved 8592 | 88 181 208 288 405 263 74 800 471 108 600 489 174 381 229 378 185 93 227 294 300 166 218 246 306 252 479 165 111 125 288 Core 10 | 10 . . . . . . . . . . . . . . . . . . . . . . . . . . . . . . Treads 1087 | . . . . . . . . . . . . . . . . . . . . . . . . . . 398 165 111 125 288 Legs 4440 | . . . . . 110 74 800 471 108 600 489 174 381 229 378 185 93 227 121 . . . . . . . . . . . Wheels 3055 | 78 181 208 288 405 153 . . . . . . . . . . . . . 173 300 166 218 246 306 252 81 . . . . Hover . | . . . . . . . . . . . . . . . . . . . . . . . . . . . . . . . Flight . | . . . . . . . . . . . . . . . . . . . . . . . . . . . . . . . Fastest Speed 50 | 50 80 80 95 110 90 90 90 90 90 90 90 100 116 87 115 115 113 123 115 115 130 145 115 128 128 128 152 152 150 150 Average Speed 117 | 76 80 81 108 110 101 90 96 90 91 90 95 164 182 114 115 115 115 123 118 126 132 145 131 128 128 147 152 152 150 150 Slowest Speed 189 | 80 80 95 125 125 155 90 100 100 170 90 100 185 189 116 115 115 123 123 123 175 145 145 145 128 128 155 152 152 152 150 Overloaded Moves 3 | . . . . . . . . . . . . . . 3 . . . . . . . . . . . . . . . . Propulsion Burnouts . | . . . . . . . . . . . . . . . . . . . . . . . . . . . . . . . Robots Hopped . | . . . . . . . . . . . . . . . . . . . . . . . . . . . . . . . Cave-ins Triggered . | . . . . . . . . . . . . . . . . . . . . . . . . . . . . . . . Exploration Rate (%) 42 | 5 43 61 31 75 66 29 84 71 24 78 24 46 66 10 63 39 81 59 14 41 7 43 9 53 11 66 8 6 94 13 Regions Visited 30 Branch Regions 10 Pre-discovered Areas 31 | . . . 2 . . . 1 . . . . . . . . . 27 1 . . . . . . . . . . . . Known Exits Taken 11 | . . . 1 . . . 1 . 1 . . 1 . 1 . . . . 1 . 1 . 1 . 1 . 1 1 . . Unknown Exits Taken 12 | 1 1 1 . 1 1 1 . . . . 1 . 1 . 1 1 1 1 . . . . . . . . . . . . Scrap Searched 12 | . . . . 1 . 2 . . . . . 2 2 . 3 2 . . . . . . . . . . . . . . Spaces Dug 68 | . . . . . . . 1 . . . 1 . 3 3 11 . . 1 4 1 6 . 6 . 7 . 2 4 2 16 Terrain Destroyed 305 | . . . 6 20 . . 23 10 14 29 8 9 22 4 32 2 32 1 4 6 7 1 9 2 9 4 4 4 12 31 Melee 28 | . . . . . . . 1 . . . 1 . . 3 1 . . 1 4 1 6 . 4 . 6 . . . . . Projectile 87 | . . . . . . . 1 . . . 7 2 7 1 8 2 . . . 1 1 1 5 2 3 4 4 4 3 31 AOE 190 | . . . 6 20 . . 21 10 14 29 . 7 15 . 23 . 32 . . 4 . . . . . . . . 9 . Terrain Rammed . | . . . . . . . . . . . . . . . . . . . . . . . . . . . . . . . Walls Destroyed . | . . . . . . . . . . . . . . . . . . . . . . . . . . . . . . . Machines Disabled . | . . . . . . . . . . . . . . . . . . . . . . . . . . . . . . . Actions | -11 -10 -10 -9 -9 -9 -8 -8 -8 -8 -8 -7 -7 -7 -6 -6 -6 -6 -5 -5 -5 -5 -5 -4 -4 -4 -4 -3 -2 -2 -1 --------- Run | Jun Mat Min Mat Min Exi Min Mat Gar Mat Gar Fac Low Low Fac Low Low Dat Pro Fac Gar Fac Gar Fac Gar Fac Gar Res Res DSF Acc Total 10459 | 115 200 219 393 448 277 91 962 550 158 676 573 250 420 255 444 207 125 229 325 412 211 291 372 369 311 632 188 119 175 462 Wait 336 | . . . 3 10 9 12 18 10 16 3 2 9 5 . 8 10 . . . 39 1 32 7 24 16 61 6 . 2 33 Move 8556 | 87 180 207 287 404 262 73 799 470 107 598 488 173 380 228 377 184 92 226 293 298 165 216 245 304 251 477 164 110 124 287 Hop . | . . . . . . . . . . . . . . . . . . . . . . . . . . . . . . . Pick Up 183 | 8 4 5 16 1 . 3 17 7 1 3 13 4 7 6 5 4 2 . 13 5 7 4 10 5 7 10 2 2 7 5 Fast Attach 47 | 5 . . 5 1 2 . 3 1 . . 2 . 1 2 1 . . . 3 1 4 1 4 . 1 5 . . 1 4 Attach 96 | 2 1 1 4 1 . . 7 1 1 2 5 6 4 4 5 1 9 . 3 1 3 1 6 1 2 6 2 2 1 14 Detach 28 | . . . 3 1 . . 2 . . . 2 . 2 2 . . . . 1 2 1 . 3 . 1 2 . . . 6 Swap 361 | 1 3 1 19 13 1 . 45 18 15 29 23 13 10 3 8 1 11 . 2 10 6 6 28 13 10 21 3 . 16 32 Drop 163 | 2 1 5 10 2 3 3 21 6 . 1 12 1 . 6 1 2 2 . 3 9 9 4 12 5 7 18 . . 9 9 Fire 511 | 10 11 . 46 15 . . 45 13 14 29 20 13 10 1 34 5 8 . . 21 9 16 41 16 6 28 11 5 15 69 Melee 74 | . . . . . . . 2 7 4 6 6 . 1 3 5 . 1 3 7 2 6 3 8 . 10 . . . . . Ram . | . . . . . . . . . . . . . . . . . . . . . . . . . . . . . . . Kick 3 | . . . . . . . 3 . . . . . . . . . . . . . . . . . . . . . . . Crush 3 | . . . . . . . . . . . . . . . . . . . . . . . . . . . . . . 3 Escape Stasis 66 | . . . . . . . . 17 . 5 . . . . . . . . . 24 . 8 8 . . 4 . . . . Rewire 32 | . . . . . . . . . . . . 31 . . . . . . . . . . . 1 . . . . . . Trap . | . . . . . . . . . . . . . . . . . . . . . . . . . . . . . . . Miscellaneous . | . . . . . . . . . . . . . . . . . . . . . . . . . . . . . . . Route ------- -11/Junkyard -10/Materials -10/Mines -9/Materials -9/Mines (discovered 3 exits: *Mat x2 / *Exi) -9/Exiles (discovered 2 exits: [*Min x2]) -8/Mines -8/Materials (discovered 4 exits: *Fac / [*Sto x2] / Gar) -8/Garrison (discovered 4 exits: *Mat x4) -8/Materials (discovered 2 exits: *Fac / Gar) -8/Garrison (discovered 3 exits: *Fac x3) -7/Factory -7/Lower Caves -7/Lower Caves (discovered 2 exits: *Fac / *Zio) -6/Factory (discovered 2 exits: *Low x2) -6/Lower Caves -6/Lower Caves (discovered 2 exits: *Fac / *Dat) -6/Data Miner -5/Proximity Caves -5/Factory (discovered 5 exits: Fac x2 / *Upp x2 / Gar) -5/Garrison -5/Factory -5/Garrison -4/Factory -4/Garrison (discovered 2 exits: *Fac x2) -4/Factory (discovered 2 exits: [*Upp] / Gar) -4/Garrison (discovered 3 exits: *Res x3) -3/Research (discovered 3 exits: *Res x3) -2/Research -2/DSF -1/Access To Epsilon Eridani History --------- Turn | Location | Event 9 | -11/Junkyard | Discovered new exit (range 16) 117 | -11/Junkyard | Entered Materials 256 | -10/Materials | Discovered new exit (range 13) 301 | -10/Materials | Build established: Mutant 305 | -10/Materials | Entered Mines 434 | -10/Mines | Discovered new exit (range 9) 450 | -10/Mines | Met a Derelict shopkeep closing up shop 485 | -10/Mines | Entered Materials 485 | -9/Materials | Evolved 2 slots: Propulsion x1, Utility x1 783 | -9/Materials | Identified exit to Mines 996 | -9/Materials | Entered Mines 1072 | -9/Mines | Received a Rocket Launcher from a helpful Derelict 1162 | -9/Mines | Learned Materials trap positions 1216 | -9/Mines | Discovered new exit (range 6) 1439 | -9/Mines | Discovered new exit (range 4) 1475 | -9/Mines | Assisted by bots powering up and referring to "LRC-V3" 1508 | -9/Mines | Deemed a non-threat by the Exiles lab entrance 1508 | -9/Mines | Discovered new exit (range 5) 1519 | -9/Mines | Entered Exiles 1519 | -9/Exiles | Accompanied by 3 allies 1534 | -9/Exiles | Discovered new exit (range 15) 1547 | -9/Exiles | Met 8R-AWN 1563 | -9/Exiles | Met EX-HEX 1639 | -9/Exiles | Met EX-BIN 1650 | -9/Exiles | Aligned with FarCom system 1651 | -9/Exiles | Given EX-Vault access code 1677 | -9/Exiles | Opened EX-Vault 1687 | -9/Exiles | Found Potential Leg 1691 | -9/Exiles | Found Potential Leg 1711 | -9/Exiles | Warned to stay clear of 0b10 Research branches 1735 | -9/Exiles | Met EX-DEC 1785 | -9/Exiles | Discovered new exit (range 10) 1801 | -9/Exiles | Left Exiles lab with Potential Leg 1801 | -9/Exiles | Entered Mines 1801 | -8/Mines | Accompanied by 3 allies 1869 | -8/Mines | Discovered new exit (range 5) 1884 | -8/Mines | Entered Materials 1884 | -8/Materials | Accompanied by 3 allies 1884 | -8/Materials | Evolved 2 slots: Utility x2 1885 | -8/Materials | Loaded intel: 19 trap records 2252 | -8/Materials | Discovered new exit (range 5) 2363 | -8/Materials | Build established: Skirmisher 2396 | -8/Materials | Discovered new exit (range 17) 2786 | -8/Materials | Discovered new exit (range 19) 2871 | -8/Materials | Central database locked down 2908 | -8/Materials | Identified exit to Garrison 2909 | -8/Materials | Entered Garrison 2909 | -8/Garrison | Warlord forces raided the area 2952 | -8/Garrison | Triggered checkpoint 3026 | -8/Garrison | Discovered new exit (range 12) 3030 | -8/Garrison | Triggered checkpoint 3043 | -8/Garrison | Warlord forces retreated 3048 | -8/Garrison | Triggered checkpoint 3094 | -8/Garrison | Build established: Mutant 3129 | -8/Garrison | Discovered new exit (range 15) 3137 | -8/Garrison | Discovered new exit (range 5) 3146 | -8/Garrison | Triggered checkpoint 3258 | -8/Garrison | Discovered new exit (range 16) 3380 | -8/Garrison | Triggered checkpoint 3405 | -8/Garrison | Installed Relay Interface Framework 3410 | -8/Garrison | Garrison Relay disabled 3450 | -8/Garrison | Entered Materials 3618 | -8/Materials | Discovered new exit (range 20) 3632 | -8/Materials | Identified exit to Garrison 3634 | -8/Materials | Entered Garrison 3753 | -8/Garrison | Triggered checkpoint 3841 | -8/Garrison | Discovered new exit (range 11) 3901 | -8/Garrison | Expanded RIF knowledge: Hotswap 3993 | -8/Garrison | Triggered checkpoint 4039 | -8/Garrison | Discovered new exit (range 11) 4109 | -8/Garrison | Rescued a captive Derelict 4110 | -8/Garrison | Rescued a captive Derelict 4143 | -8/Garrison | Triggered checkpoint 4168 | -8/Garrison | Triggered checkpoint 4179 | -8/Garrison | Discovered new exit (range 11) 4188 | -8/Garrison | Triggered checkpoint 4285 | -8/Garrison | Garrison Relay disabled 4325 | -8/Garrison | Entered Factory 4325 | -7/Factory | Accompanied by 1 ally 4325 | -7/Factory | Evolved 2 slots: Propulsion x1, Utility x1 4857 | -7/Factory | Discovered new exit (range 10) 4929 | -7/Factory | Entered Lower Caves 4941 | -7/Lower Caves | Identified exit to Lower Caves 4975 | -7/Lower Caves | Attracted the attention of an 0b10 outpost 5033 | -7/Lower Caves | Lost 6 parts (3n3u) 5202 | -7/Lower Caves | Learned 4 Factory zone layouts 5219 | -7/Lower Caves | Attracted the attention of an 0b10 checkpoint 5322 | -7/Lower Caves | Entered another Lower Caves area 5322 | -7/Lower Caves | Accompanied by 2 allies 5421 | -7/Lower Caves | Discovered new exit (range 4) 5423 | -7/Lower Caves | Learned 4 Factory zone layouts 5509 | -7/Lower Caves | Spotted B-75 Beast 5683 | -7/Lower Caves | Ambushed by wild Derelicts 5833 | -7/Lower Caves | Discovered new exit (range 16) 5862 | -7/Lower Caves | Identified exit to Zion 6082 | -7/Lower Caves | Entered Factory 6082 | -6/Factory | Evolved 2 slots: Utility x2 6083 | -6/Factory | Identified exit to Lower Caves 6377 | -6/Factory | Entered Lower Caves 6573 | -6/Lower Caves | Learned Factory emergency access door positions 6634 | -6/Lower Caves | Learned 8 Factory zone layouts 6746 | -6/Lower Caves | Attacked by a faux Warlord 6893 | -6/Lower Caves | Lost 3 parts (1u2w) 6907 | -6/Lower Caves | Discovered new exit (range 15) 6944 | -6/Lower Caves | Entered another Lower Caves area 6944 | -6/Lower Caves | Discovered new exit (range 9) 6953 | -6/Lower Caves | Attracted the attention of an 0b10 checkpoint 7173 | -6/Lower Caves | Discovered new exit (range 14) 7188 | -6/Lower Caves | Entered Data Miner 7188 | -6/Data Miner | Discovered new exit (range 6) 7206 | -6/Data Miner | Met Data Miner 7231 | -6/Data Miner | Learned location of Section 7 (-3) 7231 | -6/Data Miner | Acquired the access code to Warlord's prototype stash 7249 | -6/Data Miner | Received God Mode back door access code from Data Miner 7274 | -6/Data Miner | Interfaced with the Data Conduit 7343 | -6/Data Miner | Lost 10 parts (1p5n2u2w) 7348 | -6/Data Miner | Entered Proximity Caves 7553 | -5/Proximity Caves | Build established: Infiltrator-Mutant 7620 | -5/Proximity Caves | Discovered new exit (range 14) 7634 | -5/Proximity Caves | Entered Factory 7634 | -5/Factory | Evolved 2 slots: Propulsion x1, Weapon x1 7635 | -5/Factory | Identified exit to Factory 7637 | -5/Factory | Loaded intel: 278 machine locations 7741 | -5/Factory | Discovered new exit (range 10) 7773 | -5/Factory | Identified exit to Upper Caves 7953 | -5/Factory | Build established: Infiltrator-Assassin 8022 | -5/Factory | Identified exit to Garrison 8025 | -5/Factory | Entered Garrison 8026 | -5/Garrison | Loaded intel: 25 machine locations 8068 | -5/Garrison | Triggered checkpoint 8144 | -5/Garrison | Triggered checkpoint 8146 | -5/Garrison | Triggered checkpoint 8164 | -5/Garrison | Triggered checkpoint 8197 | -5/Garrison | Destroyed 10 combat bots 8406 | -5/Garrison | Triggered checkpoint 8458 | -5/Garrison | Expanded RIF knowledge: Signal Jamming 8545 | -5/Garrison | Discovered new exit (range 12) 8561 | -5/Garrison | Entered Factory 8562 | -5/Factory | Loaded intel: 268 machine locations 8853 | -5/Factory | Identified exit to Garrison 8855 | -5/Factory | Entered Garrison 8856 | -5/Garrison | Loaded intel: 30 machine locations 8930 | -5/Garrison | Triggered checkpoint 8966 | -5/Garrison | Expanded RIF knowledge: Structural Interface 8998 | -5/Garrison | Found embedded Infiltrators 9127 | -5/Garrison | Triggered checkpoint 9146 | -5/Garrison | Build established: Scavenger-Mutant 9249 | -5/Garrison | Discovered exit to Factory (range 12) 9269 | -5/Garrison | Entered Factory 9269 | -4/Factory | Evolved 2 slots: Power x1, Utility x1 9270 | -4/Factory | Loaded intel: 263 machine locations 9350 | -4/Factory | Local machine network offline 9810 | -4/Factory | Identified exit to Garrison 9812 | -4/Factory | Entered Garrison 9813 | -4/Garrison | Loaded intel: 31 machine locations 9859 | -4/Garrison | Triggered checkpoint 9897 | -4/Garrison | Triggered checkpoint 9952 | -4/Garrison | Triggered checkpoint 9976 | -4/Garrison | Discovered new exit (range 12) 10232 | -4/Garrison | Discovered new exit (range 11) 10269 | -4/Garrison | Expanded RIF knowledge: Program Shield 10305 | -4/Garrison | Entered Factory 10306 | -4/Factory | Loaded intel: 279 machine locations 10640 | -4/Factory | Discovered new exit (range 7) 10717 | -4/Factory | Identified exit to Garrison 10719 | -4/Factory | Entered Garrison 10720 | -4/Garrison | Loaded intel: 24 machine locations 10750 | -4/Garrison | Triggered checkpoint 10775 | -4/Garrison | Triggered checkpoint 10852 | -4/Garrison | Build established: Scavenger-Gunner 10966 | -4/Garrison | Discovered new exit (range 11) 11210 | -4/Garrison | Build established: Gunner 11239 | -4/Garrison | Discovered new exit (range 13) 11255 | -4/Garrison | Expanded RIF knowledge: Alert ID Control 11348 | -4/Garrison | Triggered checkpoint 11447 | -4/Garrison | Spotted B-86 Titan 11452 | -4/Garrison | Destroyed B-86 Titan 11584 | -4/Garrison | Discovered new exit (range 12) 11617 | -4/Garrison | Expanded RIF knowledge: Threat Obfuscation 11639 | -4/Garrison | Entered Research 11639 | -3/Research | Evolved 2 slots: Utility x2 11640 | -3/Research | Loaded intel: 106 machine locations 11750 | -3/Research | Discovered new exit (range 20) 11888 | -3/Research | Identified exit to Research 11931 | -3/Research | Entered another Research area 11931 | -2/Research | Evolved 2 slots: Utility x2 11932 | -2/Research | Loaded intel: 94 machine locations 12113 | -2/Research | Identified exit to DSF 12113 | -2/Research | Entered DSF 12114 | -2/DSF | Loaded intel: 4 machine locations 12126 | -2/DSF | Discovered new exit (range 23) 12155 | -2/DSF | Additional patrols routed to DSF 12209 | -2/DSF | Found Enh. Gamma Bomb Array 12211 | -2/DSF | Found Enh. Gamma Bomb Array 12376 | -2/DSF | Entered Access 12376 | -1/Access | Spotted B-99 Colossus 12376 | -1/Access | Evolved 2 slots: Utility x1, Weapon x1 12377 | -1/Access | Loaded intel: 123 machine locations 12393 | -1/Access | Destroyed B-99 Colossus 12426 | -1/Access | Found Prototype Ballistic Gun 12426 | -1/Access | Identified Multirail 12546 | -1/Access | Found Exp. Core Analyzer 12611 | -1/Access | Build established: Infiltrator-Mutant 12978 | -1/Access | Discovered new exit (range 6) 12978 | -1/Access | Spotted B-99 Colossus 12978 | -1/Access | Spotted B-99 Colossus 13016 | -1/Access | Destroyed B-99 Colossus 13062 | -1/Access | Destroyed B-99 Colossus 13099 | *** | Escaped! Last Messages --------------- 13062_ System corrupted: Enh. Gauss Cannon jammed. 13062_ B-99 Colossus destroyed. 13065_ Activated siege mode. 13066_ Acquired 14 matter. 13066_ Slug penetrates H-81 Overseer. 13067_ H-81 Overseer call for reinforcements jammed. 13069_ Enh. Gauss Cannon destroyed. 13070_ Acquired 12 matter. 13070_ Ended siege mode. 13070_ Extracted 200 matter. 13072_ H-81 Overseer destroyed. 13080_ Acquired 6 matter. 13080_ Acquired 83 matter. 13081_ Acquired 4 matter. 13086_ Acquired 27 matter. 13086_ The Access Shell folds into the floor. 13091_ Acquired Graphene Brace. 13092_ Acquired 9 matter. 13092_ Acquired 1 matter. 13098_ System corrupted: Heat flow error (+272). Map ----- +----------------------------------------------------+ | ????????????????????????????????""???????????????? | | ????????????????????????????????""???????????????? | | ????????????????????????????????"T???????????????? | | ????????????????????????????????""???????????????? | | ????????????????????????????????""??????????"F?""? | | ????????????????????????????????""??????????"""""? | | ????????????????????????????????""??????????"""""? | | ????????????????????????????????"????????????????? | | ????????????????????##???????????????????????????? | | ????????????????????# ???##?????????? ########## | | ?????????????????#################???############# | | ?????????????????? ???? | | ??????????????????? | | ????????????????????# ""############## | | ????????????????????# u %%""### # | | ????????????????????# [% ""### #[= | | "???????????????????# T### /%== | | "???????????????????# "### #=%= | | ????????????????????# "### # = | | "??????????????????## "### # | | "??????????????????# k ## g # ### | | ???????????????????## ! ### # ## | | ????????????????????# ### # ## | | ????????????????????# ### # ## | | ????????????????????# ### # ## | | ????????????????????# @" ### # ## | | ????????????????????# "" ### # ## | | ????????????????????# ### # ## | | ????????????????????# ; # # ## | | ????????????????????# !########/##### ## | | ????????????????????# !#### ## ## | | ????????????????????# #?## =## ## | | ????????????????????#% #?## ## ## | | ????????????????????#% ] #?## " ## ### | | ????????????????????#%%* #?## """ # ## | | ????????????????????# % #### """ + T" ?? | | ????????????????????# %% # # " # " ?? | | ????????????????????# %% #### # ## | | ????????????????????# #?## ## ## | | ????????????????????# #?############ ## | | ????????????????????# #?############ ##? | | ????????????????????#### ####????????????? ##? | | ???????????????????????# #?#?????????????? ##? | | ???????????????????????# #???????????????? ##? | | ???????????????????????+ #???????????????? ##? | | ???????????????????????# #???????????????? # | | ???????????????????????# ?"""????????????? # | | ???????????????????????# ?"""????????????? / | | ???????????????????????# ?"S???????????????? # | | ???????????????????????# ??"""???????????????## | +----------------------------------------------------+ Best States ------------- Heat Dissipation 110 Energy Generation 45 Energy Capacity 600 Matter Stores 300 Matter Capacity 300 Sight Range 23 Terrain Scan Range 16 Terrain Scan Density 10 Jamming Range 16 Cloak Strength 3 EM Shielding 4 Armor Coverage 1200 Resistance: KI 25 Resistance: TH 25 Weapon Shielding 33 Weapon Cycling 25 Phase Shifting 15 Evasion (%) 57 Targeting Accuracy 16 Launcher Accuracy 40 Target Analysis 6 Core Analysis 8 Armor Integrity Analysis 30 Recoil Reduction 5 Kinecelleration 40 Offensive Hacking 11 Relay Coupler Types 1 Relay Coupler Value 13 Item Schematics ----------------- Combat Drone Bay | -6/Data Miner | Free Lgt. Regenerative Plating | -6/Data Miner | Free Enh. Armored Leg | -6/Data Miner | Free Imp. Matter Compressor | -6/Data Miner | Free Ionic Axe | -6/Data Miner | Free Centrium Wheel | -6/Data Miner | Free Adv. Thermal Shield | -6/Data Miner | Free Hyp. Mass Driver | -6/Data Miner | Free Imp. Remote Datajack | -6/Data Miner | Free Nova Cannon | -6/Data Miner | Free Robot Schematics ------------------ M-22 Extractor | -6/Data Miner | Free A-15 Conveyor | -6/Data Miner | Free B-60 Warrior | -6/Data Miner | Free Y-54 Guardian | -6/Data Miner | Free W-44 Eye | -6/Data Miner | Free M-30 Cleanser | -6/Data Miner | Free L-61 Swordsman | -6/Data Miner | Free Fabricated ------------ Nothing Alien Tech Used ----------------- None Achievements -------------- None Challenges ------------ None Game ------ Seed BoreAssaultSuite Manual? 0 Play Time 03:38:49 Cumulative 953.1 hours Start 2023.06.27 @ 15:19:06 End 2023.06.27 @ 19:28:46 Sessions 3 Manual Loads 0 Difficulty Rogue Special Mode None Game No. 493 Rogue 366 Adventurer 125 Explorer 2 Win Type 0 Total 112 Types 88/9/7/2/3/0/0/2/1 Lore% 82 Gallery% 89 Achievement% 82 Wizard Run 0 Options --------- ASCII 0 Keyboard 1 Movement Numpad Keybinds 0 Fullscreen 1 Font 36/TerminusFine Map View 76x50 Tactical HUD 1 Map Filters NONE Filters NONE Steam 1 RUN: 2ad9cdde-7b48-42b7-8934-2f351dc98dcc